[Event "FIDE WTC Prel-B 2022"]
[Site "Jerusalem"]
[Date "2022.11.22"]
[Round "5.6"]
[White "Moussard, Jules"]
[Black "Xu, Xiangyu"]
[Result "1-0"]
[ECO "B92"]
[WhiteElo "2676"]
[BlackElo "2577"]
[Annotator "TA"]
[PlyCount "139"]
[EventDate "2022.11.20"]
[EventType "team-tourn"]
[EventCountry "ISR"]
[SourceTitle "playchess.com"]
[Source "ChessBase"]
[SourceQuality "1"]
[WhiteTeam "France"]
[BlackTeam "China"]
[WhiteTeamCountry "FRA"]
[BlackTeamCountry "CHN"]
[TimeControl "2700+10"]

{[%evp 16,139,10,0,10,0,0,0,13,0,16,8,8,18,15,0,0,0,13,10,13,13,27,23,43,18,17,8,8,0,14,-62,-65,-90,0,0,0,0,0,28,26,37,60,44,60,54,79,47,81,52,54,54,150,0,0,0,0,0,0,0,19,22,24,27,32,23,23,37,40,12,18,11,8,9,18,14,15,8,10,0,0,0,8,8,22,22,16,32,54,64,100,31,34,24,64,64,64,64,64,64,166,0,50,50,1457,64,1352,950,29965,29952,29976,29977,29977,29978,29978,29975,29984,29985,29984,29985,29987,29988,29988,29989,29993,29993]} 1. e4 {[%emt 0:00:02]} c5 {[%emt 0:00:02]} 2. Nf3 {[%emt 0:00:01]} d6 {[%emt 0:00:02]} 3. d4 {[%emt 0:00:02]} cxd4 {[%emt 0:00:03]} 4. Nxd4 {[%emt 0:00:02]} Nf6 {[%emt 0:00:03]} 5. Nc3 {[%emt 0:00:02]} a6 {[%emt 0:00:02]} 6. Be2 {[%emt 0:00:03]} e5 {[%emt 0:00:06]} 7. Nb3 {[%emt 0:00:04]} Be7 {[%emt 0:00:05]} 8. O-O {[%emt 0:00:04]} O-O {[%emt 0:00:04]} 9. Re1 {[%emt 0:00:02]} Be6 {[%emt 0:00:39] B92: Sicilian Najdorf: 6 Be2.} 10. Be3 {[%emt 0:00:04]} Nbd7 {[%emt 0:00:07]} 11. a4 {[%emt 0:00:02]} Qc7 {[%emt 0:01:17] The position is equal.} 12. a5 {[%emt 0:00:07]} Rfc8 {[%emt 0:01:01]} 13. Bf3 {[%emt 0:05:11]} h6 {[%emt 0:00:48]} 14. h3 {[%emt 0:00:27]} Rab8 {[%emt 0:02:52] 14...Qc6 is not played anymore.} 15. Ba7 {[%emt 0:09:34]} Ra8 {[%emt 0:00:04]} 16. Be3 {[%emt 0:00:01]} Rab8 {[%emt 0:00:08] is the new trend.} 17. Nd2 {[%emt 0:00:17]} Bf8 {[%emt 0:00:26] [#]} 18. Qe2 $146 {[%emt 0:01:52]} ({Predecessor:} 18. Nf1 b5 19. axb6 Nxb6 20. Rxa6 Nc4 21. Ra7 Qd8 22. b3 Nxe3 23. Rxe3 d5 24. exd5 {1-0 (54) Sevian,S (2684)-Hakobyan,A (2601) Saint Louis 2022}) 18... Qd8 {[%emt 0:00:08]} 19. Rec1 {[%emt 0:01:15]} Qe8 {[%emt 0:05:57]} 20. Kh2 {[%emt 0:02:52]} Be7 {[%emt 0:02:28]} 21. g3 {[%emt 0:01:12]} Bd8 {[%emt 0:00:25]} 22. Bg2 {[%emt 0:01:36]} b6 {[%emt 0:04:48]} 23. f4 {[%emt 0:01:08]} (23. axb6 $11 Bxb6 24. Bxb6 Rxb6 25. Nd5 Bxd5 26. exd5) 23... exf4 $15 {[%emt 0:01:20]} 24. gxf4 {[%emt 0:00:03]} Nf8 {[%emt 0:00:19]} (24... bxa5 $17 25. Rcb1 Rb4) 25. axb6 $11 {[%emt 0:01:28]} Bxb6 {[%emt 0:00:21]} 26. Rxa6 {[%emt 0:00:08]} Bxe3 {[%emt 0:01:15]} 27. Qxe3 {[%emt 0:00:02]} Rxb2 {[%emt 0:00:09]} 28. Rxd6 {[%emt 0:00:10]} Ng6 {[%emt 0:01:20][%cal Og6f4]} 29. e5 {[%emt 0:01:43]} Nh5 {[%emt 0:01:55]} 30. Ne2 {[%emt 0:00:23] Black must now prevent Qf3.} Nh4 {[%emt 0:06:30] Prevents Qf3.} (30... Rbxc2 $2 31. Rxc2 Rxc2 32. Bf3 Nhxf4 33. Nxf4 $18) 31. Nd4 {[%emt 0:01:45]} Nxg2 {[%emt 0:06:56]} 32. Kxg2 {[%emt 0:00:03]} Rd8 {[%emt 0:00:14]} 33. Kh2 {[%emt 0:00:50][%cal Bg2h2,Bh2g1,Bg1f2,Bf2e3][%mdl 32]} (33. Kg1 {looks sharper.} Bd5 34. Re1 Qf8 35. c4) 33... Bd5 {[%emt 0:00:36] [#]} ({Black should try} 33... Qf8 $14) 34. Rxd8 {[%emt 0:02:58]} (34. Nf5 $1 $16) 34... Qxd8 {[%emt 0:00:02]} 35. Rg1 {[%emt 0:00:32]} Kh8 {[%emt 0:00:47]} 36. f5 {[%emt 0:01:17][%cal Of5f6]} Qc7 {[%emt 0:00:11] Prevents f6.} 37. Re1 {[%emt 0:01:04]} f6 {[%emt 0:00:59]} 38. Kg1 {[%emt 0:00:29]} fxe5 {[%emt 0:02:18]} 39. Qxe5 {[%emt 0:00:03]} Qxe5 {[%emt 0:01:21]} 40. Rxe5 {[%emt 0:00:01]} Nf6 {[%emt 0:00:02]} 41. Kf2 {[%emt 0:00:20]} Kg8 {[%emt 0:00:06]} 42. Re7 {[%emt 0:00:36]} Ra2 {[%emt 0:00:14]} 43. Rc7 {[%emt 0:03:20]} Ra3 {[%emt 0:00:46]} 44. c3 {[%emt 0:01:36]} Ra2 {[%emt 0:00:01]} 45. Ke3 {[%emt 0:00:07]} Bg2 {[%emt 0:00:13] ...Nd5+ is the strong threat.} 46. Rc8+ {[%emt 0:00:01]} Kf7 $1 {[%emt 0:00:15]} 47. N2f3 {[%emt 0:01:53]} Nd5+ {[%emt 0:00:36]} 48. Ke4 {[%emt 0:00:30]} Ra5 {[%emt 0:00:03]} 49. c4 {[%emt 0:00:45]} Nf6+ {[%emt 0:01:20]} 50. Kf4 {[%emt 0:00:01] aiming for Ne5+.} Nh5+ {[%emt 0:00:42]} 51. Kg4 {[%emt 0:00:10] And now Rc7+ would win.} Nf6+ {[%emt 0:00:13]} 52. Kg3 {[%emt 0:00:01]} Bxf3 {[%emt 0:00:06]} 53. Kxf3 $14 {[%emt 0:00:01][%mdl 4096] Endgame KRN-KRN} (53. Rc7+ $16 Kg8 54. Kxf3) 53... Ra3+ {[%emt 0:00:15]} 54. Kf4 {[%emt 0:00:05]} Rxh3 {[%emt 0:00:13]} 55. Rc7+ {[%emt 0:00:28]} Kg8 {[%emt 0:00:09]} 56. Ne6 {[%emt 0:00:27]} Rh4+ {[%emt 0:00:03]} 57. Kf3 {[%emt 0:00:08] White is much more active.} Rh3+ {[%emt 0:00:30]} ({Black should play} 57... Ne8 $14 58. Re7 Rxc4) 58. Kf4 {[%emt 0:00:22]} (58. Kg2 $18 Rh5 59. c5 (59. Rxg7+ Kh8 $16) 59... Rxf5 60. Rxg7+ Kh8 61. c6) 58... Rh4+ {[%emt 0:00:02]} 59. Kg3 {[%emt 0:00:02]} Rh5 $2 {[%emt 0:00:29][%mdl 8192]} (59... Rg4+ $14 60. Kh3 g5) 60. Rxg7+ $18 {[%emt 0:00:22]} ({Inferior is} 60. Nxg7 Rg5+ 61. Kf4 Rxg7 $15) 60... Kh8 {[%emt 0:00:02]} 61. Kf4 {[%emt 0:00:09] White wants to mate with Ke5.} Rh4+ {[%emt 0:00:12]} 62. Ke5 {[%emt 0:00:03] White mates.} Ng4+ {[%emt 0:00:05] [#]} 63. Rxg4 $1 {[%emt 0:02:57][%mdl 512]} Rxg4 {[%emt 0:00:02] KR-KN} 64. c5 {[%emt 0:00:01][%cal Bc4c5,Bc5c6][%mdl 32]} h5 {[%emt 0:00:39]} 65. c6 {[%emt 0:00:14]} h4 {[%emt 0:00:06]} 66. f6 {[%emt 0:00:28][%cal Bf5f6,Bf6f7][%mdl 32]} Kg8 {[%emt 0:00:18]} 67. Kd6 {[%emt 0:00:01]} Ra4 {[%emt 0:00:16]} 68. Ke7 {[%emt 0:00:03]} Ra8 {[%emt 0:00:07]} 69. f7+ {[%emt 0:00:05]} Kh8 {[%emt 0:00:12]} 70. Nd8 {[%emt 0:00:45] Weighted Error Value: White=0.16 (very precise) /Black=0.14 (very precise)} 1-0

[Event "FIDE WTC Prel-B 2022"]
[Site "Jerusalem"]
[Date "2022.11.22"]
[Round "5.7"]
[White "Bai, Jinshi"]
[Black "Gharamian, Tigran"]
[Result "1/2-1/2"]
[ECO "D31"]
[WhiteElo "2569"]
[BlackElo "2601"]
[Annotator "TA"]
[PlyCount "60"]
[EventDate "2022.11.20"]
[EventType "team-tourn"]
[EventCountry "ISR"]
[SourceTitle "playchess.com"]
[Source "ChessBase"]
[SourceQuality "1"]
[WhiteTeam "China"]
[BlackTeam "France"]
[WhiteTeamCountry "CHN"]
[BlackTeamCountry "FRA"]
[TimeControl "2700+10"]

{[%evp 9,60,16,44,27,25,19,21,19,33,28,29,15,20,12,8,6,15,0,0,0,0,0,0,3,0,-14,-15,-14,-14,-16,0,-17,-19,-25,-4,-6,0,-20,-20,-22,-22,-15,-22,-22,0,0,0,0,0,0,0,0,0]} 1. c4 {[%emt 0:00:03]} e6 {[%emt 0:00:02]} 2. Nc3 {[%emt 0:00:03]} d5 {[%emt 0:00:03]} 3. d4 {[%emt 0:00:03]} a6 {[%emt 0:00:04]} 4. cxd5 {[%emt 0:03:30]} exd5 {[%emt 0:00:11]} 5. Qb3 {[%emt 0:00:04]} Bd6 {[%emt 0:05:00]} 6. Nf3 {[%emt 0:00:39] D31: Queen's Gambit Declined: Semi-Slav without ...Nf6 (+ Marshall Gambit and Noteboom) and Exchange Variation lines without ...Nf6.} Ne7 {[%emt 0:00:09]} 7. Bg5 {[%emt 0:00:22]} (7. Nxd5 $2 Nxd5 8. e4 Nb6 $19) 7... Nbc6 {[%emt 0:05:25]} 8. e3 {[%emt 0:01:37]} Be6 {[%emt 0:01:24]} 9. Bd3 {[%emt 0:02:33]} (9. Qxb7 $2 Na5 10. Bxe7 Bxe7 11. Bb5+ Kf8 $19) 9... O-O {[%emt 0:01:07] [#]} 10. O-O $146 {[%emt 0:01:55]} (10. Qxb7 $2 {perishes.} Na5 $19) ({Predecessor:} 10. a3 Qd7 11. Qc2 h6 12. Bh4 Nf5 13. O-O Nxh4 14. Nxh4 Ne7 15. Na4 {½-½ (48) Matlakov,M (2714)-Timofeev,A (2555) Sochi 2017}) 10... Qd7 {[%emt 0:01:33]} 11. Bh4 {[%emt 0:06:33]} (11. Qxb7 $2 Rfb8 $19) 11... Nf5 {[%emt 0:12:03]} 12. Bxf5 {[%emt 0:04:38]} (12. Qxb7 $2 {loses.} Nxh4 13. Nxh4 Rfb8 $19) 12... Bxf5 {[%emt 0:00:01]} 13. Nxd5 {[%emt 0:01:40]} (13. Rac1 {simplifies} Rab8 14. Bg3 Bxg3 15. hxg3 Rfd8 16. Na4) 13... Be6 $1 {[%emt 0:00:32] And now ...Bxd5 would win. This pair of bishops is nice.} 14. e4 {[%emt 0:00:02][%cal Od5f6]} Nb4 {[%emt 0:04:26][%mdl 64] [#]} 15. Ne5 {[%emt 0:04:02]} Bxe5 {[%emt 0:04:39]} 16. Qxb4 {[%emt 0:00:18]} Bd6 {[%emt 0:00:50]} 17. Qc3 {[%emt 0:00:34]} (17. Qxb7 $2 {too greedy.} Rfb8 $19) 17... Bxd5 {[%emt 0:01:36]} 18. exd5 {[%emt 0:00:02]} Qb5 {[%emt 0:01:51]} 19. Qb3 {[%emt 0:00:02]} Rfe8 {[%emt 0:00:24]} (19... Qxb3 {simplifies} 20. axb3 Rfe8 21. Rfe1 h6) 20. Rfe1 {[%emt 0:00:23]} Qxb3 {[%emt 0:00:27]} 21. axb3 {[%emt 0:00:02]} Rxe1+ {[%emt 0:00:01]} 22. Rxe1 $11 {[%emt 0:00:02][%mdl 4096] Endgame KRB-KRB. The position is equal.} Kf8 {[%emt 0:00:01]} 23. Kf1 {[%emt 0:01:23]} f6 {[%emt 0:01:39]} 24. Bg3 {[%emt 0:05:06]} Bxg3 {[%emt 0:00:13]} 25. hxg3 {[%emt 0:00:01] KR-KR} Rd8 {[%emt 0:00:01]} 26. Rc1 {[%emt 0:00:01]} Rxd5 {[%emt 0:00:00]} 27. Rxc7 {[%emt 0:00:04]} Rxd4 {[%emt 0:00:02]} 28. Rxb7 {[%emt 0:00:11]} Rd2 {[%emt 0:00:01]} 29. Ra7 {[%emt 0:00:05]} Rxb2 {[%emt 0:00:02]} 30. Rxa6 {[%emt 0:00:01]} Rxb3 {[%emt 0:00:01] Weighted Error Value: White=0.06 (flawless) /Black=0.04 (flawless)} 1/2-1/2

[Event "FIDE WTC Prel-B 2022"]
[Site "Jerusalem"]
[Date "2022.11.22"]
[Round "5.8"]
[White "Lagarde, Maxime"]
[Black "Li, Di"]
[Result "0-1"]
[ECO "D35"]
[WhiteElo "2573"]
[BlackElo "2539"]
[Annotator "TA"]
[PlyCount "78"]
[EventDate "2022.11.20"]
[EventType "team-tourn"]
[EventCountry "ISR"]
[SourceTitle "playchess.com"]
[Source "ChessBase"]
[SourceQuality "1"]
[WhiteTeam "France"]
[BlackTeam "China"]
[WhiteTeamCountry "FRA"]
[BlackTeamCountry "CHN"]
[TimeControl "2700+10"]

{[%evp 15,78,12,23,8,25,18,37,24,41,19,30,22,27,30,31,29,35,23,25,27,29,9,9,0,0,-25,-26,-63,-63,-62,-59,-59,-59,-59,-59,-68,-68,-89,-82,-102,-62,-86,-62,-110,-90,-158,-94,-185,-175,-159,-104,-177,-172,-220,-194,-295,-284,-359,-350,-337,-306,-257,-238,-29994,-29995]} 1. d4 {[%emt 0:00:01]} Nf6 {[%emt 0:00:02]} 2. c4 {[%emt 0:00:01]} e6 {[%emt 0:00:01]} 3. Nc3 {[%emt 0:00:01]} d5 {[%emt 0:00:01]} 4. cxd5 {[%emt 0:00:04]} exd5 {[%emt 0:00:02]} 5. Bg5 {[%emt 0:00:02][%cal Bc1g5,Bg5h4,Bh4g3,Bg3f4][%mdl 32]} c6 {[%emt 0:00:01]} 6. e3 {[%emt 0:00:01]} h6 {[%emt 0:00:02]} 7. Bh4 {[%emt 0:00:05]} Be7 {[%emt 0:00:01]} 8. Bd3 {[%emt 0:00:03]} O-O {[%emt 0:00:05]} 9. Nge2 {[%emt 0:00:01] is more profitable than 9.Qc2 at the moment. D35: Queen's Gambit Declined: Exchange Variation.} Ne8 {[%emt 0:00:38]} 10. Bg3 {[%emt 0:00:23]} Nd6 {[%emt 0:00:02]} 11. O-O {[%emt 0:00:06] White is slightly better.} Re8 {[%emt 0:00:23] [#]} 12. Bf4 $146 {[%emt 0:00:05]} ({Predecessor:} 12. Qc2 Bf8 13. Rad1 a5 14. a3 Nd7 15. h3 Nf6 16. Be5 Nfe4 17. Bxe4 dxe4 18. Ng3 {½-½ (30) Nisipeanu,L (2615)-Moussard,J (2686) Germany 2022}) 12... Bf5 {[%emt 0:02:34]} 13. Bxd6 {[%emt 0:00:04]} Bxd3 {[%emt 0:00:01]} 14. Bxe7 {[%emt 0:00:02]} Bxe2 {[%emt 0:00:02]} 15. Bxd8 {[%emt 0:00:02]} Bxd1 {[%emt 0:00:02]} 16. Rfxd1 {[%emt 0:00:16] [#] Threatens to win with Bc7.} Rxd8 {[%emt 0:00:01]} 17. b4 {[%emt 0:00:09]} a6 {[%emt 0:01:25]} 18. Rab1 {[%emt 0:00:17]} Nd7 {[%emt 0:00:11]} 19. Na4 {[%emt 0:00:06]} b5 {[%emt 0:01:17]} 20. Nc5 {[%emt 0:05:12]} Nxc5 $1 {[%emt 0:00:13]} 21. dxc5 $11 {[%emt 0:00:03][%mdl 4096] Endgame KRR-KRR} a5 {[%emt 0:00:55]} 22. a3 {[%emt 0:00:12]} Re8 {[%emt 0:00:08]} 23. Rd4 {[%emt 0:00:52]} axb4 {[%emt 0:00:31]} 24. axb4 {[%emt 0:00:01]} h5 {[%emt 0:01:23]} 25. h4 {[%emt 0:01:36]} f5 {[%emt 0:01:53]} 26. Rb2 {[%emt 0:08:12]} Kf7 {[%emt 0:00:25]} 27. Kf1 {[%emt 0:02:57]} Kf6 {[%emt 0:01:03]} 28. Ke2 {[%emt 0:00:04]} Ra1 {[%emt 0:03:12]} 29. f3 {[%emt 0:02:10]} (29. Rbd2 $15 {is more appropriate.}) 29... Rc1 $17 {[%emt 0:08:00] Black is more active.} 30. Kf2 {[%emt 0:02:55]} (30. Rbd2 $142) 30... Ra8 {[%emt 0:03:14]} (30... Rc3 $142 31. Re2 Ra8) 31. g4 {[%emt 0:09:53]} (31. Rd3 $17) 31... hxg4 {[%emt 0:00:35]} 32. fxg4 {[%emt 0:00:02]} g6 {[%emt 0:00:07]} (32... Rc4 $142 33. Kf3 Ra3 34. Rxc4 bxc4 35. gxf5 Rb3) 33. gxf5 {[%emt 0:00:57]} (33. Rf4 $17 {was called for.}) 33... gxf5 $19 {[%emt 0:00:03]} ({Stronger than} 33... Kxf5 34. Rf4+ Ke5 35. Rg4 $15) 34. Kf3 {[%emt 0:00:47]} (34. Re2 $142) 34... Rh1 {[%emt 0:02:54] And now ...Rh3+ would win.} 35. Kg2 {[%emt 0:01:53] Against Rh3} (35. Rg2 {was worth a try.}) 35... Raa1 {[%emt 0:01:55]} 36. Rf4 {[%emt 0:03:21]} Rag1+ {[%emt 0:00:33]} 37. Kf2 {[%emt 0:00:04]} Rg8 {[%emt 0:00:39] ( -> ...Rh2+)} 38. Rb3 {[%emt 0:00:30]} Rh2+ {[%emt 0:00:06]} 39. Kf3 $2 {[%emt 0:00:09] [#]} (39. Kf1 $19) 39... Rhg2 {[%emt 0:00:10] Weighted Error Value: White=0.46/Black=0.10 (very precise)} 0-1

[Event "FIDE WTC Prel-B 2022"]
[Site "Jerusalem"]
[Date "2022.11.22"]
[Round "5.9"]
[White "Ivanchuk, Vasyl"]
[Black "Van Foreest, Jorden"]
[Result "0-1"]
[ECO "D40"]
[WhiteElo "2673"]
[BlackElo "2690"]
[Annotator "TA"]
[PlyCount "108"]
[EventDate "2022.11.20"]
[EventType "team-tourn"]
[EventCountry "ISR"]
[SourceTitle "playchess.com"]
[Source "ChessBase"]
[SourceQuality "1"]
[WhiteTeam "Ukraine"]
[BlackTeam "Netherlands"]
[WhiteTeamCountry "UKR"]
[BlackTeamCountry "NED"]
[TimeControl "2700+10"]

{[%evp 11,108,13,7,24,17,20,23,0,0,0,0,11,7,0,29,22,25,0,23,14,21,14,15,15,53,25,40,44,33,37,46,25,77,64,95,85,85,83,85,89,253,251,273,272,279,283,258,250,287,278,289,278,290,300,305,305,305,309,285,296,305,306,381,381,396,76,75,0,0,0,310,300,272,252,326,89,80,87,20,37,268,-325,-295,-414,-135,-216,-102,-1080,-1080,-1065,-1065,-1065,-1065,-1065,-1065,-1064,-1028,-895,-879]} 1. d4 {[%emt 0:00:03]} d5 {[%emt 0:00:04]} 2. c4 {[%emt 0:00:03]} e6 {[%emt 0:00:02]} 3. Nc3 {[%emt 0:00:04]} c5 {[%emt 0:00:03]} 4. cxd5 {[%emt 0:01:43]} exd5 {[%emt 0:00:03]} 5. Nf3 {[%emt 0:00:39]} Nf6 {[%emt 0:00:03]} 6. e3 {[%emt 0:03:04]} a6 {[%emt 0:01:00]} 7. b3 {[%emt 0:03:45] Prevents c4. 7.g3 gains popularity. D40: Queen's Gambit Declined: Semi-Tarrasch with 5 e3.} Nc6 {[%emt 0:00:03]} 8. Bb2 {[%emt 0:00:06]} Bg4 {[%emt 0:00:12]} 9. Be2 {[%emt 0:02:06] White has an edge.} Bxf3 {[%emt 0:01:45]} 10. Bxf3 {[%emt 0:00:04] next dxc5 is good for White.} cxd4 {[%emt 0:00:02]} 11. exd4 {[%emt 0:00:01]} Bb4 {[%emt 0:00:28]} 12. O-O {[%emt 0:06:01][%cal Bh1f1,Bf1e1,Be1e2,Be2c2][%mdl 32]} O-O {[%emt 0:00:03]} 13. Na4 {[%emt 0:00:22][%cal Bc3a4,Ba4c5,Bc5d3][%mdl 32]} Re8 {[%emt 0:00:44]} 14. Nc5 {[%emt 0:00:31] [#]} (14. a3 $5 {[%cal Ra3b4]} Bf8 15. b4 $14) 14... b6 $146 {[%emt 0:04:23]} ({Predecessor:} 14... Ne4 15. a3 Bxc5 16. dxc5 Qg5 17. Bxe4 Rxe4 18. Qd3 Rae8 19. Rad1 d4 20. b4 Qd5 {0-1 (38) Shlyakhtenko,R (2351)-Amburgy,R (2030) Cherry Hill 2021}) 15. Nd3 {[%emt 0:01:57] Black must now prevent Rc1.} Bd6 {[%emt 0:00:13]} 16. Rc1 {[%emt 0:03:51]} (16. g3 {simplifies} Rc8 17. Re1 Rc7 18. Rxe8+ Qxe8 19. Rc1) 16... Rc8 {[%emt 0:00:50]} (16... Nb4 {simplifies} 17. Nxb4 Bxb4 18. g3 Qd7) 17. Re1 {[%emt 0:00:16]} Ne4 {[%emt 0:02:46]} (17... Rxe1+ {simplifies} 18. Qxe1 a5 19. Ne5 Nb4) 18. Re2 {[%emt 0:02:10]} Qd7 {[%emt 0:07:25]} (18... Qh4 19. g3 Qd8 20. Qe1 $16) 19. Rec2 {[%emt 0:03:48]} Nf6 {[%emt 0:03:29] Against Bg4} 20. g3 {[%emt 0:01:49]} g6 {[%emt 0:02:13]} 21. Bg2 {[%emt 0:02:43][%cal Od3e5] aiming for Ne5! A strong pair of Bishops.} Rc7 {[%emt 0:01:03]} (21... Nb4 $1 $11) 22. Qf1 {[%emt 0:03:21] Bh3 is the strong threat.} (22. Qd2 $5 {[%cal Rd2g5]} Ne4 23. Qd1 $14) 22... Re7 {[%emt 0:03:29]} 23. Bh3 {[%emt 0:04:14]} Qe8 {[%emt 0:00:06]} 24. Ne5 {[%emt 0:00:24][%cal Re5c6] Prevents a5.} Nb8 {[%emt 0:07:41]} 25. Ba3 $36 {[%emt 0:00:51][%mdl 2048] White is in control.} (25. Rxc7 {simplifies} Rxc7 26. Rxc7 Bxc7 27. Qc1) 25... Qd8 {[%emt 0:02:49] [#]} (25... Rxc2 $16 {keeps fighting.} 26. Rxc2 (26. Bxd6 Rxc1 27. Qxc1 Ra7 $11) 26... Bxa3) 26. Nd7 $1 $18 {[%emt 0:00:02][%mdl 512]} Rexd7 {[%emt 0:04:59]} (26... Nbxd7 $2 27. Rxc7 (27. Bxd6 Rxc2 28. Rxc2 Re8 $18) 27... Bxc7 28. Bxe7 Qxe7 29. Rxc7) (26... Rcxd7 $2 27. Bxd6 Rxd6 28. Rc8 $18) (26... Rxc2 27. Nxf6+) 27. Bxd6 {[%emt 0:00:45]} Rxc2 {[%emt 0:00:04]} 28. Rxc2 {[%emt 0:00:02]} Rxd6 {[%emt 0:00:14]} 29. Rc8 {[%emt 0:00:02] Prevents Nc6.} Qxc8 {[%emt 0:01:11]} 30. Bxc8 {[%emt 0:00:02]} Nc6 {[%emt 0:00:46]} 31. Qxa6 {[%emt 0:03:17]} (31. Bxa6 $6 Nxd4 32. Qd3 Nf5 $18) 31... Nxd4 {[%emt 0:00:02]} 32. Kg2 {[%emt 0:00:01] Prevents Nf3.} Kg7 {[%emt 0:00:07]} 33. b4 {[%emt 0:00:53]} Nc2 {[%emt 0:00:01][%cal Od5d4]} 34. Qa4 {[%emt 0:00:54] Inhibits d4.} Ne1+ {[%emt 0:00:06]} 35. Kf1 {[%emt 0:00:08]} Nf3 {[%emt 0:00:02][%cal Od5d4]} 36. Qd1 {[%emt 0:00:31] Inhibits d4.} Ne5 {[%emt 0:01:49]} 37. Qd4 {[%emt 0:00:18]} Nf3 {[%emt 0:00:14]} 38. Qf4 {[%emt 0:00:09]} (38. Qe3 $18) 38... Ne4 $16 {[%emt 0:00:01][%mdl 64]} 39. Kg2 {[%emt 0:00:23]} (39. Qxf3 $2 Nd2+ 40. Kg2 Nxf3 41. Kxf3 d4 $19) (39. Qc1 $16) 39... Ne1+ $1 $11 {[%emt 0:00:02]} 40. Kf1 {[%emt 0:00:00]} Nd3 {[%emt 0:00:01][%mdl 8192]} (40... Nf3 $1 $11) 41. Qe3 $18 {[%emt 0:00:04]} Ndxf2 {[%emt 0:00:15] And now ...d4 would win.} 42. Qd4+ $1 {[%emt 0:00:01]} Kg8 {[%emt 0:00:34]} 43. a4 $2 {[%emt 0:00:03]} (43. b5 $18) 43... Rc6 $16 {[%emt 0:00:01]} 44. Ba6 $1 {[%emt 0:00:11][%mdl 1024] White has strong compensation.} Rc1+ {[%emt 0:00:07]} 45. Kg2 {[%emt 0:00:11]} Ng4 $2 {[%emt 0:00:04]} (45... Rd1 $1 $14 46. Qxb6 Rd2) 46. Bd3 $4 {[%emt 0:00:26][%mdl 8192]} (46. Qxd5 $2 Ne3+ 47. Kf3 Nxd5 $19) (46. Qxb6 Rc2+ 47. Kg1 Rc1+ 48. Kg2 (48. Bf1 $2 Nd2 $19) 48... Rc2+ 49. Kg1 Rc1+ 50. Kg2 $11 (50. Bf1 $2 Nd2 $19)) (46. h3 $1 $18 {[%cal Rh3g4]} Rc2+ 47. Kg1 Rc1+ 48. Kg2 Rc2+ 49. Kg1 Rc1+ 50. Bf1 Nxg3 51. Qxg4 Nxf1 52. Qd7) 46... Rd1 $19 {[%emt 0:00:04]} 47. a5 {[%emt 0:00:06]} (47. h3 $142 Rd2+ 48. Kg1) 47... Rd2+ $2 {[%emt 0:00:04]} (47... bxa5 $19 {has better winning chances.} 48. h3 (48. bxa5 $2 h5 $19) 48... Rd2+ 49. Kg1 Ngf2 50. bxa5 Nxh3+ 51. Kf1 Nhg5) 48. Kg1 {[%emt 0:00:05] [#]} (48. Kf3 $17 {was the only defense.} Nxh2+ 49. Kf4 bxa5 50. Qxd5) 48... Nef2 {[%emt 0:00:23] Dancing on a razor blade.} (48... Rxh2 $2 49. Bxe4 (49. Qxd5 Rh1+ 50. Kxh1 Nef2+ 51. Kg2 Ne3+ 52. Kxf2 Nxd5 $18) 49... Re2 50. Bxd5 Re1+ 51. Kg2 Ne3+ 52. Kf2 bxa5 53. Ba2 $18) (48... Nxh2 49. Qe3 bxa5 50. bxa5 $14 (50. Bxe4 dxe4 51. Qxe4 axb4 $11)) (48... bxa5 $1 $19 49. bxa5 Rd1+ 50. Kg2 h5) 49. Qxd5 $2 {[%emt 0:00:29][%mdl 8192]} (49. Qxb6 $17 Nxd3 50. h3 Rd1+ 51. Kg2) 49... Nh3+ {[%emt 0:00:08] Black is clearly winning.} ({And not} 49... Nxd3 50. Qb7 h5 51. a6 $11) (49... Rxd3 $2 {[#]} 50. Qxd3 $3 {[%mdl 512]} (50. Qa8+ Kg7 $14) 50... Nxd3 51. a6 $18) 50. Kf1 {[%emt 0:00:00]} Ne3+ {[%emt 0:00:00]} ({Not} 50... Rxh2 51. Qd8+ Kg7 52. Qd4+ Nf6 53. axb6 Rf2+ 54. Ke1 $18) 51. Ke1 {[%emt 0:00:00]} Rd1+ {[%emt 0:00:05]} 52. Ke2 {[%emt 0:00:02]} Nxd5 {[%emt 0:01:27]} 53. Kxd1 Nf2+ {[%emt 0:00:00]} 54. Kd2 {[%emt 0:00:11]} Nxd3 {[%emt 0:00:00] Weighted Error Value: White=0.48/Black=0.41} 0-1